bitfinex-derivatives/quotes_BTCF0:USTF0_20230901
["timestamp","ask_amount","ask_price","bid_price","bid_amount"]
[1693558805838,0.28438508,25992.0,25991.0,0.81923685]
[1693558806438,0.28438508,25992.0,25991.0,0.74225759]
[1693558806742,0.28438508,25992.0,25991.0,0.81923685]
[1693558807539,0.28438508,25992.0,25991.0,0.57855294]
[1693558808239,0.28438508,25992.0,25991.0,0.50157368]
[1693558808547,0.28438508,25992.0,25991.0,0.57855294]
[1693558808940,0.28438508,25992.0,25991.0,0.50157368]
[1693558809142,0.28438508,25992.0,25991.0,0.57855294]
[1693558809446,0.28438508,25992.0,25991.0,0.50157368]
[1693558820254,0.28438508,25992.0,25991.0,0.44688461]
[1693558820453,0.28438508,25992.0,25991.0,0.50157368]
[1693558821454,0.28438508,25992.0,25991.0,0.74223902]
[1693558829651,0.28438508,25992.0,25991.0,0.50157368]
[1693558834566,0.28438508,25992.0,25991.0,0.44688461]
[1693558835065,0.28438508,25992.0,25991.0,0.50157368]
[1693558840773,0.28438508,25992.0,25991.0,0.74224065]
[1693558840975,0.28438508,25992.0,25991.0,0.81921991]
[1693558841968,0.28438508,25992.0,25991.0,0.76453084]
[1693558842775,0.28438508,25992.0,25991.0,0.44688461]
[1693558843564,0.28438508,25992.0,25991.0,0.50157368]
[1693558844269,0.28438508,25992.0,25991.0,0.57855294]
[1693558844971,0.28438508,25992.0,25991.0,0.81921997]
[1693558845571,0.28438508,25992.0,25991.0,0.7645309]
[1693558846069,0.28438508,25992.0,25991.0,0.81921997]
[1693558846277,0.28438508,25992.0,25991.0,0.7645309]
[1693558846675,0.28438508,25992.0,25991.0,0.81921997]
[1693558850278,0.28438508,25992.0,25991.0,0.74224071]
[1693558850480,0.28438508,25992.0,25991.0,0.68755164]
[1693558851373,0.28438508,25992.0,25991.0,0.85770961]
[1693558851980,0.28438508,25992.0,25991.0,0.56235351]
[1693558852381,0.28438508,25992.0,25991.0,0.5238814]
[1693558853277,0.28438508,25992.0,25991.0,0.57857047]
[1693558854081,0.28438508,25992.0,25991.0,0.5238814]
[1693558856582,0.28438508,25992.0,25991.0,0.57857047]
[1693558856787,0.28438508,25992.0,25991.0,0.5238814]
[1693558859087,0.28438508,25992.0,25991.0,0.76454941]
[1693558860887,0.36093346,25992.0,25991.0,0.7376648]
[1693558861387,0.36093346,25992.0,25991.0,0.66066801]
[1693558861785,0.36093346,25992.0,25991.0,0.73766776]
[1693558862488,0.36093346,25992.0,25991.0,0.66066801]
[1693558867089,0.36093346,25992.0,25991.0,0.49700752]
[1693558872796,0.36093346,25992.0,25991.0,0.49700011]
[1693558874397,0.36093346,25992.0,25991.0,0.73767494]
[1693558875891,0.34093346,25992.0,25991.0,0.73767494]
[1693558876096,0.34093346,25992.0,25991.0,0.73767205]
[1693558882296,0.22733334,25992.0,25991.0,0.52388183]
[1693558888013,0.22733334,25992.0,25991.0,0.5785709]
[1693558888212,0.22733334,25992.0,25991.0,0.52388183]
[1693558888616,0.22733334,25992.0,25991.0,0.5785709]
[1693558888803,0.22733334,25992.0,25991.0,0.52388183]
[1693558889411,0.22733334,25992.0,25991.0,0.76455498]
[1693558889908,0.22733334,25992.0,25991.0,0.81924405]
[1693558890108,0.22733334,25992.0,25991.0,0.76455498]
[1693558891517,0.22733334,25992.0,25991.0,0.73767037]
[1693558892216,0.28388172,25992.0,25991.0,0.73767037]
[1693558895819,0.22733334,25992.0,25991.0,0.76455498]
[1693558897716,0.22733334,25992.0,25991.0,0.52388183]
[1693558898015,0.28388172,25992.0,25991.0,0.49699722]
[1693558906429,0.28388172,25992.0,25991.0,0.42]
[1693558909622,0.71988172,25992.0,25991.0,0.42]
[1693558909823,0.71988172,25992.0,25991.0,0.41577198]
[1693558910915,0.69988172,25992.0,25991.0,0.41577198]
[1693558911930,0.69988172,25992.0,25991.0,0.65647114]
[1693558920131,0.69988172,25992.0,25991.0,0.41577198]
[1693558920332,0.71988172,25992.0,25991.0,0.41577198]
[1693558921733,0.69988172,25992.0,25991.0,0.41577198]
[1693558922236,0.69988172,25992.0,25991.0,0.41233907]
[1693558928835,0.69988172,25992.0,25991.0,0.416]
[1693558931644,0.69988172,25992.0,25991.0,0.27125828]
[1693558931851,0.69988172,25992.0,25991.0,0.25864481]
[1693558934440,0.69988172,25992.0,25991.0,0.49935308]
[1693558934635,0.93454922,25992.0,25991.0,0.49935308]
[1693558934849,0.69988172,25992.0,25991.0,0.49935308]
[1693558935044,0.70373172,25992.0,25991.0,0.24070827]
[1693558935349,0.69988172,25992.0,25991.0,0.24070827]
[1693558939141,0.93069922,25992.0,25991.0,0.24070827]
[1693558941643,0.69988172,25992.0,25991.0,0.24070827]
[1693558942546,0.69988172,25992.0,25990.0,0.5805]
[1693558942752,0.05654838,25991.0,25990.0,0.5805]
[1693558944147,0.05654838,25991.0,25990.0,0.5815]
[1693558945042,0.07154838,25991.0,25990.0,0.5825]
[1693558949447,0.12988587,25991.0,25990.0,0.5825]
[1693558949646,0.12988587,25991.0,25990.0,0.8232053]
[1693558950656,0.13373587,25991.0,25990.0,0.8232053]
[1693558951757,0.36455337,25991.0,25990.0,0.8232053]
[1693558952145,0.36070337,25991.0,25990.0,0.8232053]
[1693558956864,0.12988587,25991.0,25990.0,0.8232053]
[1693558957664,0.13373587,25991.0,25990.0,0.5825]
[1693558964869,0.13373587,25991.0,25990.0,0.82320529]
[1693558965067,0.54588587,25991.0,25990.0,0.40720529]
[1693558970470,0.77670337,25991.0,25990.0,0.40720529]
[1693558970867,0.54588587,25991.0,25990.0,0.40720529]
[1693558971472,0.77670337,25991.0,25990.0,0.40720529]
[1693558971964,0.77670337,25991.0,25990.0,0.1665]
[1693558972163,0.54973587,25991.0,25990.0,0.1665]
[1693558978067,0.77670337,25991.0,25990.0,0.1665]
[1693558979472,0.54588587,25991.0,25990.0,0.1665]
[1693558979974,0.54973587,25991.0,25990.0,0.1665]
[1693558980181,0.54973587,25991.0,25990.0,0.40720465]
[1693558987379,0.54973587,25991.0,25990.0,0.1665]
[1693558988382,0.54973587,25991.0,25990.0,0.14614029]
[1693558992990,0.54973587,25991.0,25990.0,0.11714029]
[1693558993388,0.54973587,25991.0,25990.0,0.08629728]
[1693559002193,0.54588587,25991.0,25990.0,0.08629728]
[1693559002595,0.54588587,25991.0,25990.0,0.32700825]
[1693559009602,0.54588587,25991.0,25990.0,0.08629728]
[1693559009993,0.54973587,25991.0,25990.0,0.08629728]
[1693559012600,0.54973587,25991.0,25990.0,0.08629728]
[1693559024723,0.54973587,25991.0,25990.0,0.32700719]
[1693559028224,0.54588587,25991.0,25990.0,0.32700719]
[1693559029121,0.48933749,25991.0,25990.0,0.3538918]
[1693559029525,0.48933749,25991.0,25990.0,0.40858087]
[1693559029711,0.48933749,25991.0,25990.0,0.36035131]
[1693559030323,0.54588587,25991.0,25990.0,0.25664336]
[1693559031926,0.54588587,25991.0,25990.0,0.01593345]
[1693559035121,0.54588587,25991.0,25990.0,0.002]
[1693559035321,0.12988587,25991.0,25990.0,0.002]
[1693559035521,0.54588587,25991.0,25990.0,0.002]
[1693559035822,0.54973587,25991.0,25990.0,0.002]
[1693559036025,0.54588587,25991.0,25990.0,0.002]
[1693559036225,0.54973587,25991.0,25990.0,0.002]
[1693559036426,0.54588587,25991.0,25990.0,0.002]
[1693559036929,0.54588587,25991.0,25990.0,0.418]
[1693559037430,0.54973587,25991.0,25990.0,0.418]
[1693559037930,0.54588587,25991.0,25990.0,0.418]
[1693559038229,0.54973587,25991.0,25990.0,0.418]
[1693559038926,0.54588587,25991.0,25990.0,0.418]
[1693559039323,0.54973587,25991.0,25990.0,0.418]
[1693559039524,0.54588587,25991.0,25990.0,0.418]
[1693559040132,0.54588587,25991.0,25990.0,0.65870612]
[1693559047032,0.54588587,25991.0,25990.0,0.002]
[1693559048622,0.54973587,25991.0,25990.0,0.002]
[1693559049132,0.54588587,25991.0,25990.0,0.002]
[1693559049833,0.54973587,25991.0,25990.0,0.002]
[1693559050222,0.77682694,25991.0,25990.0,0.002]
[1693559050529,0.78067694,25991.0,25990.0,0.002]
[1693559051031,0.77682694,25991.0,25990.0,0.002]
[1693559051734,0.77680725,25991.0,25990.0,0.002]
[1693559054536,0.54588587,25991.0,25990.0,0.002]
[1693559055333,0.00385,25990.0,25989.0,0.5409986]
[1693559055534,0.21089838,25990.0,25989.0,0.78172647]
[1693559056128,0.21089838,25990.0,25989.0,0.75073502]
[1693559056837,0.21189838,25990.0,25989.0,0.75673502]
[1693559057040,0.62789838,25990.0,25989.0,0.34073502]
[1693559057537,0.62889838,25990.0,25989.0,0.34673502]
[1693559062440,0.62889838,25990.0,25989.0,0.10600715]
[1693559070544,0.62889838,25990.0,25989.0,0.34672604]
[1693559077846,0.62889838,25990.0,25989.0,0.10600715]
[1693559079747,0.62504838,25990.0,25989.0,0.10600715]
[1693559080050,0.62889838,25990.0,25989.0,0.10600715]
[1693559083149,0.15635,25990.0,25989.0,0.13289176]
[1693559085056,0.15635,25990.0,25989.0,0.10600715]
[1693559085752,0.15635,25990.0,25989.0,0.13289176]
[1693559086353,0.15635,25990.0,25989.0,0.10600715]
[1693559086354,0.21289838,25990.0,25989.0,0.10600715]
[1693559086556,0.62889838,25990.0,25989.0,0.10600715]
[1693559086945,0.21289838,25990.0,25989.0,0.52200715]
[1693559091469,0.15635,25990.0,25989.0,0.54889176]
[1693559091960,0.15635,25990.0,25989.0,0.52200715]
[1693559093161,0.15635,25990.0,25989.0,0.76272101]
[1693559095655,0.62889838,25990.0,25989.0,0.76272101]
[1693559097263,0.57235,25990.0,25989.0,0.76272101]
[1693559099257,0.57235,25990.0,25989.0,0.78960562]
[1693559100161,0.57235,25990.0,25989.0,0.54889176]
[1693559100360,0.57235,25990.0,25989.0,0.52200715]
[1693559102557,0.57235,25990.0,25989.0,0.54889176]
[1693559103365,0.57235,25990.0,25989.0,0.52200715]
[1693559107070,0.62889838,25990.0,25989.0,0.012]
[1693559107268,0.57235,25990.0,25989.0,0.24071477]
[1693559107775,0.62889838,25990.0,25989.0,0.24071477]
[1693559109071,0.62504838,25990.0,25989.0,0.24071477]
[1693559109273,0.62889838,25990.0,25989.0,0.24071477]
[1693559110376,0.62504838,25990.0,25989.0,0.24071477]
[1693559111276,0.62889838,25990.0,25989.0,0.23301298]
[1693559111671,0.62504838,25990.0,25989.0,0.23301298]
[1693559111876,0.5685,25990.0,25989.0,0.25989759]
[1693559112066,0.57235,25990.0,25989.0,0.25989759]
[1693559112268,0.57235,25990.0,25989.0,0.23301298]
[1693559112467,0.62504838,25990.0,25989.0,0.23301298]
[1693559112873,0.62889838,25990.0,25989.0,0.23301298]
[1693559113477,0.62504838,25990.0,25989.0,0.23301298]
[1693559113874,0.62889838,25990.0,25989.0,0.23301298]
[1693559114479,0.62504838,25990.0,25989.0,0.2176106]
[1693559115378,0.62504838,25990.0,25987.0,0.0770157]
[1693559115576,0.47254838,25989.0,25987.0,0.4930157]
[1693559115774,0.416,25989.0,25987.0,0.4930157]
[1693559115977,0.22274838,25988.0,25987.0,0.416]
[1693559116476,0.22274838,25988.0,25987.0,0.468]
[1693559116679,0.63874838,25988.0,25987.0,0.052]
[1693559116972,0.64174838,25988.0,25987.0,0.052]
[1693559119171,0.64474838,25988.0,25987.0,0.052]
[1693559121675,0.5882,25988.0,25987.0,0.052]
[1693559122478,0.5882,25988.0,25987.0,0.29272456]
[1693559122882,0.5882,25988.0,25987.0,0.31960917]
[1693559125280,0.61828959,25988.0,25987.0,0.31960917]
[1693559126382,0.20228959,25988.0,25987.0,0.31960917]
[1693559126574,0.61828959,25988.0,25987.0,0.31960917]
[1693559129979,0.20228959,25988.0,25987.0,0.31960917]
[1693559130188,0.67518706,25988.0,25987.0,0.31960917]
[1693559130478,0.67518706,25988.0,25987.0,0.07888461]
[1693559131980,0.61828959,25988.0,25987.0,0.07888461]
[1693559135292,0.61828959,25988.0,25987.0,0.052]
[1693559135984,0.61828959,25988.0,25987.0,0.07888461]
[1693559137586,0.61828959,25988.0,25987.0,0.3196054]
[1693559138585,0.61828959,25988.0,25987.0,0.29272079]
[1693559138785,0.67483797,25988.0,25987.0,0.29272079]
[1693559138991,0.67483797,25988.0,25987.0,0.052]
[1693559140780,0.61828959,25988.0,25987.0,0.052]
[1693559141385,0.61828959,25988.0,25987.0,0.07888461]
[1693559141889,0.67483797,25988.0,25987.0,0.052]
[1693559145888,0.67483797,25988.0,25987.0,0.29272666]
[1693559151693,0.61828959,25988.0,25987.0,0.29272666]
[1693559151895,0.67483797,25988.0,25987.0,0.29272666]
[1693559152797,0.67483797,25988.0,25987.0,0.052]
[1693559155299,0.00385,25987.0,25984.0,0.07699321]
[1693559155495,0.416,25985.0,25984.0,0.07699321]
[1693559155790,0.44898408,25985.0,25984.0,0.29841089]
[1693559155998,0.44898408,25985.0,25984.0,0.24074551]
[1693559156296,0.47254838,25985.0,25984.0,0.24074551]
[1693559156894,0.47254838,25985.0,25984.0,0.003]
[1693559157797,0.52992907,25985.0,25984.0,0.003]
[1693559158187,0.53392907,25985.0,25984.0,0.005]
[1693559158593,0.53792907,25985.0,25984.0,0.005]
[1693559163605,0.54177907,25985.0,25984.0,0.005]
[1693559166302,0.57288426,25985.0,25984.0,0.005]
[1693559168204,0.57288426,25985.0,25984.0,0.24574363]
[1693559172810,0.51633588,25985.0,25984.0,0.24574363]
[1693559173508,0.57288426,25985.0,25984.0,0.24574363]
[1693559175204,0.57288426,25985.0,25984.0,0.005]
[1693559182113,0.57288426,25985.0,25984.0,0.2457408]
[1693559183624,0.51633588,25985.0,25984.0,0.2457408]
[1693559183811,0.51633588,25985.0,25984.0,0.27262541]
[1693559186431,0.51633588,25985.0,25984.0,0.2457408]
[1693559186727,0.57288426,25985.0,25984.0,0.2457408]
[1693559186921,0.03910519,25985.0,25984.0,0.68862541]
[1693559187426,0.03910519,25985.0,25984.0,0.74331448]
[1693559201544,0.03910519,25985.0,25984.0,0.76331448]
[1693559201745,0.03910519,25985.0,25984.0,0.74331448]
[1693559205449,0.03910519,25985.0,25984.0,0.85880429]
[1693559232366,0.03910519,25985.0,25984.0,0.74331448]
[1693559233363,0.04295519,25985.0,25984.0,0.74331448]
[1693559235570,0.04295519,25985.0,25984.0,1.1520775]
[1693559242578,0.04295519,25985.0,25984.0,0.74331448]
[1693559246288,0.03910519,25985.0,25984.0,0.74331448]
[1693559246981,0.03910519,25985.0,25984.0,1.56807574]
[1693559250592,0.03910519,25985.0,25984.0,1.15931448]
[1693559253001,0.21153749,25991.0,25985.0,0.08157368]
[1693559253299,0.21153749,25991.0,25990.0,0.416]
[1693559253300,0.23153749,25991.0,25990.0,0.416]
[1693559253490,0.07833749,25991.0,25990.0,0.416]
[1693559253891,0.00057715,25992.0,25990.0,0.416]
[1693559253892,0.00057715,25992.0,25990.0,0.49757368]
[1693559254090,0.00057715,25992.0,25991.0,0.416]
[1693559254396,0.00057715,25992.0,25991.0,0.49757368]
[1693559254897,0.01557715,25992.0,25991.0,0.49757368]
[1693559255596,0.04699371,25992.0,25991.0,0.49757368]
[1693559256096,0.07499371,25992.0,25991.0,0.49857368]
[1693559256489,0.07499371,25992.0,25991.0,0.65147368]
[1693559257401,0.08799371,25992.0,25991.0,0.65247368]
[1693559257585,0.08799371,25992.0,25991.0,0.89314293]
[1693559265601,0.08799371,25992.0,25991.0,0.65247368]
[1693559267395,0.06399371,25992.0,25991.0,0.66147368]
[1693559267594,0.06399371,25992.0,25991.0,0.66947368]
[1693559267595,0.03999371,25992.0,25991.0,0.66947368]
[1693559268296,0.05645369,25996.0,25992.0,0.416]
[1693559268498,0.02,25996.0,25995.0,0.416]
[1693559269300,0.18728061,25997.0,25995.0,0.49757368]
[1693559269598,0.20728061,25997.0,25996.0,0.416]
[1693559269998,0.20728061,25997.0,25996.0,0.49757368]
[1693559271095,0.20928061,25997.0,25996.0,0.49857368]
[1693559271598,0.21128061,25997.0,25996.0,0.49957368]
[1693559272597,0.19128061,25997.0,25996.0,0.49957368]
[1693559283016,0.19128061,25997.0,25996.0,0.57629375]
[1693559283516,0.19128061,25997.0,25996.0,0.59629375]
[1693559284616,0.13352834,25997.0,25996.0,0.59629375]
[1693559285809,0.13352834,25997.0,25996.0,0.57629375]
[1693559286008,0.13352834,25997.0,25996.0,0.59629375]
[1693559286311,0.13352834,25997.0,25996.0,0.57629375]
[1693559287717,0.13352834,25997.0,25996.0,0.49957368]
[1693559287908,0.13352834,25997.0,25996.0,0.74020836]
[1693559290212,0.13352834,25997.0,25996.0,0.81692843]
[1693559294424,0.13352834,25997.0,25996.0,0.74020836]
[1693559294618,0.13352834,25997.0,25996.0,0.81696972]
[1693559295115,0.13352834,25997.0,25996.0,0.57633504]
[1693559295722,0.13352834,25997.0,25996.0,0.61471572]
[1693559297919,0.000577,25999.0,25996.0,0.61471572]
[1693559298120,0.000577,25999.0,25998.0,0.49279745]
[1693559298825,0.000577,25999.0,25998.0,0.49757368]
[1693559299222,0.000577,25999.0,25998.0,0.61271572]
[1693559300126,0.000577,25999.0,25998.0,0.49757368]
[1693559300325,0.03533799,25999.0,25998.0,0.61271572]
[1693559300623,0.03733799,25999.0,25998.0,0.76322709]
[1693559300822,0.03733799,25999.0,25998.0,0.93674981]
[1693559301025,1e-08,26002.0,25999.0,0.77068907]
[1693559301226,0.05794247,26003.0,25999.0,0.77068907]
[1693559301227,0.05794247,26003.0,26001.0,0.49279529]
[1693559301529,0.60385,26009.0,26002.0,0.416]
[1693559301728,0.436,26007.0,26006.0,0.416]
[1693559301927,0.436,26007.0,26006.0,0.49757368]
[1693559303441,0.4940464,26007.0,26006.0,0.46677009]
[1693559303726,0.52510604,26007.0,26006.0,0.46677009]
[1693559303927,0.56110604,26007.0,26006.0,0.46877009]
[1693559304326,0.59610604,26007.0,26006.0,0.47277009]
[1693559306140,0.59610604,26007.0,26006.0,0.41808102]
[1693559306442,0.59610604,26007.0,26006.0,0.47277009]
[1693559307140,0.18010604,26007.0,26006.0,0.47277009]
[1693559314945,0.16010604,26007.0,26006.0,0.47277009]
[1693559315341,0.18010604,26007.0,26006.0,0.47277009]
[1693559316045,0.16010604,26007.0,26006.0,0.47277009]
[1693559319141,0.63265442,26007.0,26006.0,0.422]
[1693559320152,0.57610604,26007.0,26006.0,0.422]
[1693559320341,0.63265442,26007.0,26006.0,0.422]
[1693559322558,0.63265442,26007.0,26000.0,0.38789529]
[1693559322747,0.57610604,26007.0,26006.0,0.38493659]
[1693559323050,0.63265442,26007.0,26006.0,0.38493659]
[1693559323246,0.57610604,26007.0,26000.0,0.38789529]
[1693559323448,0.57610604,26007.0,26006.0,0.416]
[1693559323756,0.63265442,26007.0,26006.0,0.416]
[1693559323950,0.63265442,26007.0,26006.0,0.30622952]
[1693559324348,0.59665442,26007.0,26006.0,0.30622952]
[1693559324651,0.59965442,26007.0,26005.0,0.416]
[1693559324956,0.05654838,26006.0,26005.0,0.416]
[1693559325844,0.05654838,26006.0,26005.0,0.418]
[1693559326459,0.08454838,26006.0,26005.0,0.418]
[1693559326958,0.50054838,26006.0,26005.0,0.002]
[1693559327146,0.53454838,26006.0,26005.0,0.005]
[1693559327654,0.50054838,26006.0,26005.0,0.005]
[1693559327859,0.53654838,26006.0,26005.0,0.005]
[1693559328755,0.50854838,26006.0,26005.0,0.004]
[1693559328961,0.54454838,26006.0,26005.0,0.004]
[1693559337864,0.54375944,26006.0,26005.0,0.004]
[1693559346561,0.59946418,26006.0,26005.0,0.004]
[1693559346962,0.54375944,26006.0,26005.0,0.1545]
[1693559348160,0.86866425,26006.0,26005.0,0.1545]
[1693559355084,0.488,26006.0,26005.0,0.1545]
[1693559355470,0.488,26006.0,26005.0,0.18217355]
[1693559357482,0.54454838,26006.0,26005.0,0.1545]
[1693559358880,0.488,26006.0,26005.0,0.1545]
[1693559360777,0.54454838,26006.0,26005.0,0.1545]
[1693559362090,0.488,26006.0,26005.0,0.1545]
[1693559362292,0.488,26006.0,26005.0,0.5705]
[1693559362490,0.488,26006.0,26005.0,0.62518907]
[1693559362693,0.488,26006.0,26005.0,0.65286262]
[1693559363584,0.488,26006.0,26005.0,0.59817355]
[1693559364194,0.488,26006.0,26005.0,0.65286262]
[1693559364493,0.488,26006.0,26005.0,0.59817355]
[1693559365795,0.488,26006.0,26005.0,0.65286262]
[1693559365995,0.072,26006.0,26005.0,0.67286262]
[1693559366690,0.072,26006.0,26005.0,1.78129088]
[1693559366889,0.03005964,26007.0,26005.0,1.78129088]
[1693559367094,0.74255964,26011.0,26006.0,1.60679088]
[1693559367290,0.74255964,26011.0,26005.0,0.1745]
[1693559367291,0.47319184,26011.0,26010.0,0.416]
[1693559367483,0.85462193,26011.0,26010.0,0.416]
[1693559367689,0.585433,26011.0,26010.0,0.416]
[1693559367995,0.85462193,26011.0,26010.0,0.416]
[1693559368598,0.585433,26011.0,26010.0,0.416]
[1693559369599,0.659433,26011.0,26010.0,0.422]
[1693559369788,0.68997563,26011.0,26010.0,0.422]
[1693559370189,0.65297563,26011.0,26010.0,0.419]
[1693559373000,0.57773447,26011.0,26010.0,0.44967355]
[1693559373201,0.57773447,26011.0,26010.0,0.50436262]
[1693559373601,0.57773447,26011.0,26010.0,0.44967355]
[1693559374894,0.57773447,26011.0,26010.0,0.50436262]
[1693559376903,0.57773447,26011.0,26010.0,0.44967355]
[1693559377503,0.57773447,26011.0,26010.0,0.422]
[1693559378005,0.63428285,26011.0,26010.0,0.422]
[1693559379193,0.63428285,26011.0,26008.0,0.1614]
[1693559379396,0.41984,26009.0,26008.0,0.1614]
[1693559379601,0.416,26009.0,26008.0,0.1614]
[1693559379905,0.47638838,26009.0,26008.0,0.1614]
[1693559380502,0.47638838,26009.0,26008.0,0.1644]
[1693559380698,0.47638838,26009.0,26008.0,0.1674]
[1693559381104,0.41984,26009.0,26008.0,0.1674]
[1693559381307,0.45684,26009.0,26008.0,0.1674]
[1693559381605,0.45684,26009.0,26008.0,0.19507355]
[1693559382101,0.49084,26009.0,26008.0,0.19507355]
[1693559382508,0.49084,26009.0,26008.0,0.1674]
[1693559383806,0.54738838,26009.0,26008.0,0.1674]
[1693559385308,0.49084,26009.0,26008.0,0.19507355]
[1693559386010,0.49084,26009.0,26008.0,0.24976262]
[1693559386208,0.49084,26009.0,26008.0,0.19507355]
[1693559386611,0.54498276,26009.0,26008.0,0.61107355]
[1693559388011,0.54498276,26009.0,26008.0,0.66576262]
[1693559388711,0.54498276,26009.0,26008.0,0.61107355]
[1693559389307,0.54498276,26009.0,26008.0,0.66576262]
[1693559389507,0.54498276,26009.0,26008.0,0.61107355]
[1693559389908,0.54498276,26009.0,26008.0,0.66576262]
[1693559390511,0.54498276,26009.0,26008.0,0.61107355]
[1693559390904,0.54498276,26009.0,26008.0,0.66576262]
[1693559392214,0.60153114,26009.0,26008.0,0.63808907]
[1693559393115,0.54498276,26009.0,26008.0,0.63808907]
[1693559394311,0.54498276,26009.0,26008.0,0.66576262]
[1693559396717,0.60153114,26009.0,26008.0,0.5834]
[1693559397918,0.54498276,26009.0,26008.0,1.7465146]
[1693559399016,0.54498276,26009.0,26008.0,0.63808907]
[1693559399216,0.54498276,26009.0,26008.0,1.74651538]
[1693559399422,0.54498276,26009.0,26008.0,0.63808907]
[1693559399819,0.54498276,26009.0,26008.0,0.66576262]
[1693559400018,0.54498276,26009.0,26008.0,1.77418926]
[1693559403428,0.60153114,26009.0,26008.0,1.69182664]
[1693559404131,0.60153114,26009.0,26008.0,1.74651571]
[1693559405532,0.54498276,26009.0,26008.0,1.77418926]
[1693559405926,0.53198276,26009.0,26008.0,1.77318926]
[1693559406323,0.53198276,26009.0,26008.0,1.77018926]
[1693559406324,0.49498276,26009.0,26008.0,1.77018926]
[1693559406524,0.52198276,26009.0,26008.0,1.77218926]
[1693559407031,0.10598276,26009.0,26008.0,1.77218926]
[1693559415841,0.048,26009.0,26008.0,1.8489185]
[1693559416029,0.5745,26015.0,26008.0,2.10911063]
[1693559416226,0.5745,26015.0,26014.0,0.416]
[1693559416430,0.44642519,26015.0,26014.0,0.49836262]
[1693559416630,0.03042519,26015.0,26014.0,0.49836262]
[1693559416834,1.1758,26016.0,26014.0,0.49836262]
[1693559417052,0.7598,26016.0,26015.0,0.49836262]
[1693559417229,0.1798,26016.0,26015.0,0.416]
[1693559417730,0.1798,26016.0,26015.0,0.49836262]
[1693559418430,0.23706247,26016.0,26015.0,0.49836262]
[1693559419343,0.22806247,26016.0,26015.0,0.50136262]
[1693559419536,0.26506247,26016.0,26015.0,0.50436262]
[1693559420042,0.29528545,26016.0,26015.0,0.50436262]
[1693559423240,0.13548545,26016.0,26015.0,0.50436262]
[1693559423641,0.13548545,26016.0,26015.0,0.52436262]
[1693559423835,0.13548545,26016.0,26015.0,1.63242388]
[1693559425141,0.13548545,26016.0,26015.0,1.61242388]
[1693559425438,0.13548545,26016.0,26015.0,1.63242388]
[1693559425633,0.13548545,26016.0,26015.0,0.52436262]
[1693559427536,0.13548545,26016.0,26015.0,0.50436262]
[1693559427732,0.13548545,26016.0,26015.0,0.52436262]
[1693559428634,0.13548545,26016.0,26015.0,0.50436262]
[1693559428838,0.13548545,26016.0,26015.0,0.52436262]
[1693559429747,0.13548545,26016.0,26015.0,0.50436262]
[1693559434948,0.13548545,26016.0,26015.0,1.61240716]
[1693559435151,0.09848545,26016.0,26015.0,1.60940716]
[1693559435344,0.10048545,26016.0,26015.0,1.63040716]
[1693559435742,0.08948545,26016.0,26015.0,1.62740716]
[1693559435945,0.08948545,26016.0,26015.0,2.05940716]
[1693559436451,0.08948545,26016.0,26015.0,2.04340716]
[1693559436652,0.08948545,26016.0,26015.0,2.05940716]
[1693559436852,0.08948545,26016.0,26015.0,2.21320716]
[1693559437149,0.08848545,26016.0,26015.0,2.20820716]
[1693559437748,0.06177187,26020.0,26015.0,2.2849364]
[1693559438055,0.08177187,26020.0,26019.0,0.416]
[1693559438251,0.08177187,26020.0,26019.0,0.49836262]
[1693559438547,0.11212762,26020.0,26019.0,0.49105043]
[1693559438755,0.02384,26020.0,26019.0,0.49105043]
[1693559440958,0.03184,26020.0,26019.0,0.49105043]
[1693559443461,0.01184,26020.0,26019.0,0.49105043]
[1693559443650,0.03184,26020.0,26019.0,0.49105043]
[1693559445762,0.01184,26020.0,26019.0,0.49105043]
[1693559446261,0.03184,26020.0,26019.0,0.49105043]
[1693559446846,0.01184,26020.0,26019.0,0.49105043]
[1693559459863,0.01184,26020.0,26019.0,0.49836262]
[1693559466979,0.01184,26020.0,26019.0,0.44367355]
[1693559467674,0.01184,26020.0,26019.0,0.49836262]
[1693559468076,0.48438838,26020.0,26019.0,0.3849999]
[1693559468980,0.50438838,26020.0,26019.0,0.23929991]
[1693559469176,0.50438838,26020.0,26019.0,0.20798729]
[1693559469580,0.50438838,26020.0,26019.0,0.17839837]
[1693559474083,0.48438838,26020.0,26019.0,0.17839837]
[1693559474382,0.50438838,26020.0,26019.0,0.15532091]
[1693559474780,0.56006023,26020.0,26019.0,0.15532091]
[1693559474982,0.54006023,26020.0,26019.0,0.15532091]
[1693559475674,0.48438838,26020.0,26019.0,0.15532091]
[1693559476792,0.48438838,26020.0,26018.0,0.416]
[1693559476987,0.00384,26018.0,26017.0,0.41657649]
[1693559477306,0.416,26018.0,26017.0,1.52460766]
[1693559477593,0.416,26018.0,26017.0,1.55228121]
[1693559478188,0.41984,26018.0,26017.0,1.56628121]
[1693559478582,0.42084,26018.0,26017.0,1.58328121]
[1693559478980,0.42084,26018.0,26017.0,1.63797028]
[1693559479887,0.42084,26018.0,26017.0,1.58328121]
[1693559480186,0.42084,26018.0,26017.0,1.63797028]
[1693559480392,0.42084,26018.0,26017.0,1.58328121]
[1693559480592,0.001,26018.0,26017.0,1.58328121]
[1693559480794,0.001,26018.0,26017.0,1.63797028]
[1693559481494,0.05754838,26018.0,26017.0,1.58328121]
[1693559481994,0.05754838,26018.0,26017.0,1.55560766]
[1693559483586,0.05754838,26018.0,26017.0,1.61029673]
[1693559483891,0.05754838,26018.0,26017.0,1.55560766]
[1693559485292,0.47354838,26018.0,26017.0,1.55560766]
[1693559486195,0.47354838,26018.0,26017.0,1.61029673]
[1693559486396,0.47354838,26018.0,26017.0,1.55560766]
[1693559486587,0.53224148,26018.0,26017.0,1.55560766]
[1693559487699,0.53224148,26018.0,26017.0,1.71290766]
[1693559489899,0.53224148,26018.0,26017.0,1.76759673]
[1693559490199,0.53224148,26018.0,26017.0,1.71290766]
[1693559490996,0.56335981,26018.0,26017.0,1.71290766]
[1693559492399,0.56335981,26018.0,26017.0,1.29690766]
[1693559494095,0.56335981,26018.0,26017.0,1.28536406]
[1693559495300,0.56335981,26018.0,26017.0,1.26613056]
[1693559500604,0.56335981,26018.0,26017.0,1.29380411]
[1693559500605,0.50681143,26018.0,26017.0,1.29380411]
[1693559500901,0.09081143,26018.0,26017.0,1.70980411]
[1693559501106,0.09081143,26018.0,26017.0,1.76449318]
[1693559503506,0.09081143,26018.0,26017.0,1.70980411]
[1693559503707,0.09081143,26018.0,26017.0,1.76449318]
[1693559504499,0.09081143,26018.0,26017.0,1.70980411]
[1693559504699,0.09081143,26018.0,26017.0,1.76449318]
[1693559505007,0.09081143,26018.0,26017.0,1.70980411]